[Event "December 12 Late 2023"]
[Site "https://www.chess.com"]
[Date "2023.12.12"]
[Round "4"]
[White "Flash_BJ"]
[Black "Crevatin, Leo"]
[Result "1-0"]
[Board "82"]
[TimeControl "180+1"]
[BlackFideId "1726307"]
[WhiteElo "2206"]
[BlackElo "2623"]
[BlackTeam "SWE"]
[WhiteClock "0:00:17"]
[BlackClock "0:00:00"]

1. c4 {[%clk 0:03:00]}  Nf6 {[%clk 0:02:58]} 2. Nf3 {[%clk 0:03:01]}  e6 {[%clk 0:02:58]} 3. g3 {[%clk 0:03:01]}  d5 {[%clk 0:02:59]} 4. b3 {[%clk 0:03:00]}  dxc4 {[%clk 0:02:53]} 5. bxc4 {[%clk 0:03:00]}  e5 {[%clk 0:02:54]} 6. d3 {[%clk 0:02:55]}  e4 {[%clk 0:02:52]} 7. dxe4 {[%clk 0:02:49]}  Qxd1+ {[%clk 0:02:51]} 8. Kxd1 {[%clk 0:02:50]}  Nxe4 {[%clk 0:02:52]} 9. Be3 {[%clk 0:02:45]}  Be6 {[%clk 0:02:45]} 10. Nbd2 {[%clk 0:02:43]}  Nxd2 {[%clk 0:02:41]} 11. Nxd2 {[%clk 0:02:43]}  Nd7 {[%clk 0:02:41]} 12. Bg2 {[%clk 0:02:39]}  c6 {[%clk 0:02:39]} 13. Rb1 {[%clk 0:02:34]}  O-O-O {[%clk 0:02:39]} 14. Kc2 {[%clk 0:02:34]}  Bc5 {[%clk 0:02:37]} 15. Bxc5 {[%clk 0:02:28]}  Nxc5 {[%clk 0:02:37]} 16. Rhd1 {[%clk 0:02:23]}  Bf5+ {[%clk 0:02:26]} 17. e4 {[%clk 0:02:21]}  Rxd2+ {[%clk 0:02:14]} 18. Kxd2 {[%clk 0:02:21]}  Nxe4+ {[%clk 0:02:14]} 19. Bxe4 {[%clk 0:02:20]}  Bxe4 {[%clk 0:02:12]} 20. Rb2 {[%clk 0:02:07]}  Bf3 {[%clk 0:02:02]} 21. Re1 {[%clk 0:02:04]}  Rd8+ {[%clk 0:02:02]} 22. Kc3 {[%clk 0:02:03]}  Bg4 {[%clk 0:01:52]} 23. Re7 {[%clk 0:01:57]}  Rd7 {[%clk 0:01:47]} 24. Rxd7 {[%clk 0:01:54]}  Bxd7 {[%clk 0:01:47]} 25. c5 {[%clk 0:01:53]}  Be6 {[%clk 0:01:39]} 26. a3 {[%clk 0:01:50]}  Kc7 {[%clk 0:01:38]} 27. Kd4 {[%clk 0:01:50]}  b6 {[%clk 0:01:31]} 28. f4 {[%clk 0:01:42]}  b5 {[%clk 0:01:30]} 29. Ke5 {[%clk 0:01:41]}  Bd5 {[%clk 0:01:04]} 30. g4 {[%clk 0:01:35]}  f6+ {[%clk 0:01:02]} 31. Kd4 {[%clk 0:01:35]}  a5 {[%clk 0:00:53]} 32. h4 {[%clk 0:01:34]}  Bf3 {[%clk 0:00:43]} 33. g5 {[%clk 0:01:32]}  fxg5 {[%clk 0:00:43]} 34. hxg5 {[%clk 0:01:28]}  Bg4 {[%clk 0:00:37]} 35. Ke5 {[%clk 0:01:20]}  Kd7 {[%clk 0:00:19]} 36. f5 {[%clk 0:01:10]}  h5 {[%clk 0:00:10]} 37. Kf4 {[%clk 0:00:37]}  Ke7 {[%clk 0:00:08]} 38. Rd2 {[%clk 0:00:31]}  Bh3 {[%clk 0:00:02]} 39. Rd6 {[%clk 0:00:27]}  Bg2 {[%clk 0:00:02]} 40. f6+ {[%clk 0:00:18]}  gxf6 {[%clk 0:00:03]} 41. gxf6+ {[%clk 0:00:18]}  Kf7 {[%clk 0:00:02]} 42. Ke5 {[%clk 0:00:19]}  h4 {[%clk 0:00:02]} 43. Rd7+ {[%clk 0:00:19]}  Kf8 {[%clk 0:00:03]} 44. Rh7 {[%clk 0:00:19]}  h3 {[%clk 0:00:03]} 45. Kf4 {[%clk 0:00:16]}  b4 {[%clk 0:00:03]} 46. axb4 {[%clk 0:00:16]}  axb4 {[%clk 0:00:04]} 47. Kg3 {[%clk 0:00:17]}  b3 {[%clk 0:00:03]} 48. Rb7 {[%clk 0:00:17]}  b2 {[%clk 0:00:03]} 49. Rxb2 {[%clk 0:00:17]}  Kf7 {[%clk 0:00:03]} 50. Rf2 {[%clk 0:00:17]}  Bd5 {[%clk 0:00:01]} 51. Kxh3 {[%clk 0:00:17]}  Be6+ {[%clk 0:00:02]} 52. Kh4 {[%clk 0:00:17]}  Kg6 {[%clk 0:00:02]} 53. Rf1 {[%clk 0:00:15]}  Bd5 {[%clk 0:00:02]} 54. Rf4 {[%clk 0:00:15]}  Be6 {[%clk 0:00:02]} 55. Kg3 {[%clk 0:00:16]}  Bd5 {[%clk 0:00:03]} 56. Kf2 {[%clk 0:00:16]}  Kg5 {[%clk 0:00:03]} 57. Ke3 {[%clk 0:00:17]}  Kg6 {[%clk 0:00:03]} 58. Kd4 {[%clk 0:00:17]}  Kf7 {[%clk 0:00:03]} 59. Ke5 {[%clk 0:00:17]}  Bb3 {[%clk 0:00:03]} 60. Kd6 {[%clk 0:00:18]}  Bd5 {[%clk 0:00:04]} 61. Rf5 {[%clk 0:00:18]}  Be4 {[%clk 0:00:04]} 62. Rf2 {[%clk 0:00:17]}  Bh1 {[%clk 0:00:03]} 63. Ke5 {[%clk 0:00:17]}  Bd5 {[%clk 0:00:02]} 64. Rh2 {[%clk 0:00:17]}  Bf3 {[%clk 0:00:01]} 65. Rh7+ {[%clk 0:00:17]}  Kf8 {[%clk 0:00:02]} 66. Rc7 {[%clk 0:00:17]}  Bg2 {[%clk 0:00:00]} 67. Kd6 {[%clk 0:00:17]} 1-0

[Event "December 12 Late 2023"]
[Site "https://www.chess.com"]
[Date "2023.12.12"]
[Round "4"]
[White "Estrada Nieto, Julian"]
[Black "Bhandari, Krish"]
[Result "1-0"]
[Board "84"]
[TimeControl "180+1"]
[WhiteFideId "5101018"]
[BlackFideId "30955106"]
[WhiteElo "2544"]
[BlackElo "2120"]
[WhiteTeam "ESP"]
[BlackTeam "USA"]
[WhiteClock "0:00:22"]
[BlackClock "0:00:30"]

1. e4 {[%clk 0:03:00]}  e5 {[%clk 0:02:57]} 2. Nf3 {[%clk 0:03:00]}  Nc6 {[%clk 0:02:55]} 3. Bb5 {[%clk 0:03:00]}  Nf6 {[%clk 0:02:53]} 4. O-O {[%clk 0:03:00]}  d6 {[%clk 0:02:53]} 5. d4 {[%clk 0:02:58]}  Bd7 {[%clk 0:02:53]} 6. Nc3 {[%clk 0:02:58]}  exd4 {[%clk 0:02:50]} 7. Nxd4 {[%clk 0:02:57]}  Be7 {[%clk 0:02:51]} 8. Bxc6 {[%clk 0:02:56]}  bxc6 {[%clk 0:02:51]} 9. Qf3 {[%clk 0:02:56]}  O-O {[%clk 0:02:50]} 10. e5 {[%clk 0:02:55]}  dxe5 {[%clk 0:02:50]} 11. Nxc6 {[%clk 0:02:55]}  Bxc6 {[%clk 0:02:51]} 12. Qxc6 {[%clk 0:02:56]}  Qd6 {[%clk 0:02:51]} 13. Qc4 {[%clk 0:02:51]}  Rad8 {[%clk 0:02:48]} 14. Bg5 {[%clk 0:02:47]}  h6 {[%clk 0:02:45]} 15. Bxf6 {[%clk 0:02:43]}  Bxf6 {[%clk 0:02:43]} 16. Rad1 {[%clk 0:02:38]}  Qb6 {[%clk 0:02:38]} 17. b3 {[%clk 0:02:22]}  c6 {[%clk 0:02:10]} 18. Ne4 {[%clk 0:02:15]}  Be7 {[%clk 0:02:10]} 19. c3 {[%clk 0:02:03]}  Qb5 {[%clk 0:02:06]} 20. Qxb5 {[%clk 0:01:42]}  cxb5 {[%clk 0:02:04]} 21. Rfe1 {[%clk 0:01:37]}  f6 {[%clk 0:01:46]} 22. Kf1 {[%clk 0:01:36]}  Kf7 {[%clk 0:01:45]} 23. Ke2 {[%clk 0:01:33]}  f5 {[%clk 0:01:37]} 24. Nd2 {[%clk 0:01:28]}  Bf6 {[%clk 0:01:28]} 25. c4 {[%clk 0:01:28]}  bxc4 {[%clk 0:01:27]} 26. Nxc4 {[%clk 0:01:28]}  Ke6 {[%clk 0:01:22]} 27. f3 {[%clk 0:01:26]}  g5 {[%clk 0:01:20]} 28. g4 {[%clk 0:01:22]}  fxg4 {[%clk 0:01:16]} 29. fxg4 {[%clk 0:01:23]}  Rd4 {[%clk 0:01:12]} 30. Rxd4 {[%clk 0:01:16]}  exd4 {[%clk 0:01:13]} 31. Kd3+ {[%clk 0:01:13]}  Kd5 {[%clk 0:01:14]} 32. Rf1 {[%clk 0:01:13]}  Bg7 {[%clk 0:01:11]} 33. Rxf8 {[%clk 0:01:12]}  Bxf8 {[%clk 0:01:10]} 34. h3 {[%clk 0:01:07]}  Bb4 {[%clk 0:01:05]} 35. a3 {[%clk 0:01:06]}  Bf8 {[%clk 0:01:04]} 36. b4 {[%clk 0:01:06]}  Be7 {[%clk 0:01:02]} 37. Na5 {[%clk 0:01:05]}  Bd8 {[%clk 0:00:58]} 38. Nb3 {[%clk 0:01:05]}  Bb6 {[%clk 0:00:58]} 39. a4 {[%clk 0:01:05]}  a6 {[%clk 0:00:56]} 40. Nd2 {[%clk 0:01:02]}  Bd8 {[%clk 0:00:55]} 41. Nf3 {[%clk 0:01:01]}  Bf6 {[%clk 0:00:52]} 42. Ne1 {[%clk 0:00:54]}  Be7 {[%clk 0:00:50]} 43. Nc2 {[%clk 0:00:53]}  Bf6 {[%clk 0:00:48]} 44. Na3 {[%clk 0:00:50]}  Be7 {[%clk 0:00:47]} 45. Nc2 {[%clk 0:00:46]}  Bf6 {[%clk 0:00:47]} 46. Na1 {[%clk 0:00:45]}  Be7 {[%clk 0:00:46]} 47. Nb3 {[%clk 0:00:44]}  Bxb4 {[%clk 0:00:45]} 48. Nxd4 {[%clk 0:00:44]}  Bf8 {[%clk 0:00:44]} 49. Nb3 {[%clk 0:00:37]}  Be7 {[%clk 0:00:41]} 50. Nd4 {[%clk 0:00:36]}  Kc5 {[%clk 0:00:39]} 51. Nf5 {[%clk 0:00:33]}  Bf8 {[%clk 0:00:39]} 52. Kc3 {[%clk 0:00:34]}  Kd5 {[%clk 0:00:36]} 53. Kd3 {[%clk 0:00:32]}  a5 {[%clk 0:00:32]} 54. Ne3+ {[%clk 0:00:28]}  Kc5 {[%clk 0:00:32]} 55. Kc3 {[%clk 0:00:26]}  Bg7+ {[%clk 0:00:32]} 56. Kb3 {[%clk 0:00:26]}  Kd4 {[%clk 0:00:30]} 57. Nf5+ {[%clk 0:00:26]}  Ke4 {[%clk 0:00:29]} 58. Nxg7 {[%clk 0:00:27]}  Kf3 {[%clk 0:00:27]} 59. Nf5 {[%clk 0:00:26]}  Kg2 {[%clk 0:00:27]} 60. Nxh6 {[%clk 0:00:26]}  Kxh3 {[%clk 0:00:28]} 61. Kc4 {[%clk 0:00:26]}  Kh4 {[%clk 0:00:28]} 62. Kb5 {[%clk 0:00:25]}  Kg3 {[%clk 0:00:28]} 63. Kxa5 {[%clk 0:00:25]}  Kf4 {[%clk 0:00:29]} 64. Kb5 {[%clk 0:00:25]}  Ke5 {[%clk 0:00:30]} 65. Nf7+ {[%clk 0:00:21]}  Kf6 {[%clk 0:00:30]} 66. Nxg5 {[%clk 0:00:21]}  Kxg5 {[%clk 0:00:30]} 67. a5 {[%clk 0:00:21]}  Kxg4 {[%clk 0:00:30]} 68. a6 {[%clk 0:00:22]} 1-0

[Event "December 12 Late 2023"]
[Site "https://www.chess.com"]
[Date "2023.12.12"]
[Round "4"]
[White "Maksimovic, Bojan"]
[Black "Luong Phuong Hanh"]
[Result "1-0"]
[Board "85"]
[TimeControl "180+1"]
[WhiteFideId "14408120"]
[BlackFideId "12401013"]
[WhiteElo "2848"]
[BlackElo "2402"]
[WhiteTeam "BIH"]
[BlackTeam "VIE"]
[WhiteClock "0:01:14"]
[BlackClock "0:00:00"]

1. a3 {[%clk 0:02:56]}  e5 {[%clk 0:02:58]} 2. h3 {[%clk 0:02:57]}  d5 {[%clk 0:02:51]} 3. e3 {[%clk 0:02:57]}  Nc6 {[%clk 0:02:51]} 4. d4 {[%clk 0:02:58]}  e4 {[%clk 0:02:51]} 5. c4 {[%clk 0:02:58]}  Nf6 {[%clk 0:02:51]} 6. Nc3 {[%clk 0:02:56]}  Bf5 {[%clk 0:02:46]} 7. cxd5 {[%clk 0:02:55]}  Nxd5 {[%clk 0:02:46]} 8. Qb3 {[%clk 0:02:56]}  Nb6 {[%clk 0:02:43]} 9. Bb5 {[%clk 0:02:53]}  Be6 {[%clk 0:02:35]} 10. Qc2 {[%clk 0:02:49]}  f5 {[%clk 0:02:33]} 11. g4 {[%clk 0:02:49]}  g6 {[%clk 0:02:27]} 12. Nge2 {[%clk 0:02:49]}  Bg7 {[%clk 0:02:25]} 13. Nf4 {[%clk 0:02:49]}  Bf7 {[%clk 0:02:24]} 14. gxf5 {[%clk 0:02:49]}  gxf5 {[%clk 0:02:23]} 15. Rg1 {[%clk 0:02:50]}  O-O {[%clk 0:02:21]} 16. Bxc6 {[%clk 0:02:31]}  bxc6 {[%clk 0:02:20]} 17. Nce2 {[%clk 0:02:32]}  Kh8 {[%clk 0:02:19]} 18. Bd2 {[%clk 0:02:33]}  Nc4 {[%clk 0:02:19]} 19. Bc3 {[%clk 0:02:31]}  Bf6 {[%clk 0:02:07]} 20. d5 {[%clk 0:02:29]}  Ne5 {[%clk 0:02:06]} 21. O-O-O {[%clk 0:02:27]}  c5 {[%clk 0:02:03]} 22. Ne6 {[%clk 0:02:25]}  Bxe6 {[%clk 0:02:03]} 23. dxe6 {[%clk 0:02:26]}  Qe7 {[%clk 0:02:01]} 24. Nf4 {[%clk 0:02:27]}  Rad8 {[%clk 0:01:40]} 25. Kb1 {[%clk 0:02:17]}  c6 {[%clk 0:01:36]} 26. Qa4 {[%clk 0:02:08]}  Nf3 {[%clk 0:01:31]} 27. Bxf6+ {[%clk 0:02:04]}  Qxf6 {[%clk 0:01:31]} 28. Rxd8 {[%clk 0:01:52]}  Rxd8 {[%clk 0:01:28]} 29. Rc1 {[%clk 0:01:53]}  Nd2+ {[%clk 0:00:59]} 30. Ka2 {[%clk 0:01:52]}  c4 {[%clk 0:00:49]} 31. Qxc6 {[%clk 0:01:47]}  Rb8 {[%clk 0:00:49]} 32. Rc2 {[%clk 0:01:47]}  Nb3 {[%clk 0:00:39]} 33. Qxc4 {[%clk 0:01:46]}  Qe5 {[%clk 0:00:17]} 34. Qxb3 {[%clk 0:01:40]}  Rxb3 {[%clk 0:00:16]} 35. Kxb3 {[%clk 0:01:40]}  Kg7 {[%clk 0:00:14]} 36. Rc4 {[%clk 0:01:34]}  Kh6 {[%clk 0:00:13]} 37. Kc2 {[%clk 0:01:31]}  a6 {[%clk 0:00:11]} 38. b4 {[%clk 0:01:32]}  Qb5 {[%clk 0:00:10]} 39. Kb3 {[%clk 0:01:32]}  a5 {[%clk 0:00:10]} 40. a4 {[%clk 0:01:28]}  Qe5 {[%clk 0:00:09]} 41. bxa5 {[%clk 0:01:27]}  Qxa5 {[%clk 0:00:09]} 42. Rb4 {[%clk 0:01:28]}  Qc5 {[%clk 0:00:08]} 43. Rb5 {[%clk 0:01:28]}  Qc1 {[%clk 0:00:08]} 44. Rxf5 {[%clk 0:01:28]}  Qb1+ {[%clk 0:00:08]} 45. Kc4 {[%clk 0:01:28]}  Qc2+ {[%clk 0:00:08]} 46. Kd5 {[%clk 0:01:26]}  Qxa4 {[%clk 0:00:07]} 47. Ke5 {[%clk 0:01:20]}  Qc4 {[%clk 0:00:06]} 48. Nd5 {[%clk 0:01:19]}  Kg6 {[%clk 0:00:05]} 49. e7 {[%clk 0:01:16]}  Qa4 {[%clk 0:00:03]} 50. Rf8 {[%clk 0:01:14]}  Qa1+ {[%clk 0:00:00]} 51. Kf4 {[%clk 0:01:14]} 1-0

[Event "December 12 Late 2023"]
[Site "https://www.chess.com"]
[Date "2023.12.12"]
[Round "4"]
[White "Nagare Kaivalya Sandip"]
[Black "Marchesich, Giovanni"]
[Result "1-0"]
[Board "86"]
[TimeControl "180+1"]
[WhiteFideId "25957929"]
[BlackFideId "2824790"]
[WhiteElo "2665"]
[BlackElo "2400"]
[WhiteTeam "IND"]
[BlackTeam "ITA"]
[WhiteClock "0:02:58"]
[BlackClock "0:02:14"]

1. e4 {[%clk 0:03:00]}  e5 {[%clk 0:02:58]} 2. Nf3 {[%clk 0:03:01]}  Nc6 {[%clk 0:02:59]} 3. Bb5 {[%clk 0:03:01]}  a6 {[%clk 0:02:59]} 4. Ba4 {[%clk 0:03:02]}  Bc5 {[%clk 0:02:59]} 5. c3 {[%clk 0:03:02]}  Nge7 {[%clk 0:02:59]} 6. d4 {[%clk 0:03:02]}  exd4 {[%clk 0:02:59]} 7. cxd4 {[%clk 0:03:02]}  Bb4+ {[%clk 0:03:00]} 8. Nc3 {[%clk 0:03:02]}  d5 {[%clk 0:03:00]} 9. exd5 {[%clk 0:03:02]}  Nxd5 {[%clk 0:02:59]} 10. O-O {[%clk 0:03:02]}  O-O {[%clk 0:02:58]} 11. Bg5 {[%clk 0:03:01]}  f6 {[%clk 0:02:49]} 12. Nxd5 {[%clk 0:03:00]}  fxg5 {[%clk 0:02:24]} 13. Bxc6 {[%clk 0:02:59]}  bxc6 {[%clk 0:02:20]} 14. Nxb4 {[%clk 0:02:59]}  Bg4 {[%clk 0:02:20]} 15. Qb3+ {[%clk 0:02:58]}  Kh8 {[%clk 0:02:19]} 16. Ne5 {[%clk 0:02:58]}  Bf5 {[%clk 0:02:14]} 17. Nf7+ {[%clk 0:02:58]} 1-0

[Event "December 12 Late 2023"]
[Site "https://www.chess.com"]
[Date "2023.12.12"]
[Round "4"]
[White "Karttunen, Mika"]
[Black "Olsson, William"]
[Result "1-0"]
[Board "87"]
[TimeControl "180+1"]
[WhiteFideId "502081"]
[BlackFideId "1741721"]
[WhiteElo "2647"]
[BlackElo "2397"]
[WhiteTeam "FIN"]
[BlackTeam "SWE"]
[WhiteClock "0:01:17"]
[BlackClock "0:01:50"]

1. e4 {[%clk 0:03:00]}  c5 {[%clk 0:02:59]} 2. Nf3 {[%clk 0:02:59]}  d6 {[%clk 0:03:00]} 3. d4 {[%clk 0:02:58]}  cxd4 {[%clk 0:03:00]} 4. Nxd4 {[%clk 0:02:58]}  Nf6 {[%clk 0:03:01]} 5. Nc3 {[%clk 0:02:58]}  g6 {[%clk 0:03:02]} 6. Be3 {[%clk 0:02:57]}  Bg7 {[%clk 0:03:02]} 7. f3 {[%clk 0:02:57]}  O-O {[%clk 0:03:03]} 8. Qd2 {[%clk 0:02:57]}  Nc6 {[%clk 0:03:03]} 9. O-O-O {[%clk 0:02:57]}  d5 {[%clk 0:03:03]} 10. exd5 {[%clk 0:02:57]}  Nxd5 {[%clk 0:03:02]} 11. Nxc6 {[%clk 0:02:58]}  bxc6 {[%clk 0:03:03]} 12. Bd4 {[%clk 0:02:58]}  e5 {[%clk 0:03:03]} 13. Bc5 {[%clk 0:02:58]}  Re8 {[%clk 0:03:03]} 14. Ne4 {[%clk 0:02:58]}  Qc7 {[%clk 0:03:02]} 15. g4 {[%clk 0:02:50]}  f5 {[%clk 0:03:00]} 16. gxf5 {[%clk 0:02:46]}  gxf5 {[%clk 0:03:00]} 17. Nd6 {[%clk 0:02:30]}  Rd8 {[%clk 0:02:55]} 18. Nxc8 {[%clk 0:02:15]}  Raxc8 {[%clk 0:02:56]} 19. Rg1 {[%clk 0:02:11]}  Kh8 {[%clk 0:02:46]} 20. Qg5 {[%clk 0:01:48]}  Qf7 {[%clk 0:02:03]} 21. Bh3 {[%clk 0:01:30]}  Nf4 {[%clk 0:01:50]} 22. Rxd8+ {[%clk 0:01:17]} 1-0

[Event "December 12 Late 2023"]
[Site "https://www.chess.com"]
[Date "2023.12.12"]
[Round "4"]
[White "Buenafe Moya, Javier"]
[Black "Iskusnyh, Sergei"]
[Result "1/2-1/2"]
[Board "91"]
[TimeControl "180+1"]
[WhiteFideId "2206412"]
[BlackFideId "4120027"]
[WhiteElo "2375"]
[BlackElo "2582"]
[WhiteTeam "ESP"]
[BlackTeam "RUS"]
[WhiteClock "0:00:13"]
[BlackClock "0:00:05"]

1. c4 {[%clk 0:02:55]}  c5 {[%clk 0:02:55]} 2. Nc3 {[%clk 0:02:52]}  g6 {[%clk 0:02:54]} 3. Nf3 {[%clk 0:02:50]}  Bg7 {[%clk 0:02:54]} 4. d4 {[%clk 0:02:50]}  cxd4 {[%clk 0:02:53]} 5. Nxd4 {[%clk 0:02:49]}  Nc6 {[%clk 0:02:54]} 6. e3 {[%clk 0:02:46]}  Nf6 {[%clk 0:02:53]} 7. Be2 {[%clk 0:02:44]}  O-O {[%clk 0:02:51]} 8. O-O {[%clk 0:02:42]}  d5 {[%clk 0:02:51]} 9. Nf3 {[%clk 0:02:23]}  dxc4 {[%clk 0:02:38]} 10. Bxc4 {[%clk 0:02:21]}  Bg4 {[%clk 0:02:25]} 11. a3 {[%clk 0:02:02]}  Rc8 {[%clk 0:02:16]} 12. Be2 {[%clk 0:01:57]}  Qb6 {[%clk 0:02:04]} 13. Qa4 {[%clk 0:01:54]}  Rfd8 {[%clk 0:01:59]} 14. Qb5 {[%clk 0:01:36]}  Qxb5 {[%clk 0:01:55]} 15. Nxb5 {[%clk 0:01:28]}  Ne4 {[%clk 0:01:47]} 16. Rd1 {[%clk 0:01:26]}  Rxd1+ {[%clk 0:01:39]} 17. Bxd1 {[%clk 0:01:26]}  a6 {[%clk 0:01:39]} 18. h3 {[%clk 0:01:15]}  Bxf3 {[%clk 0:00:52]} 19. Bxf3 {[%clk 0:01:08]}  Nc5 {[%clk 0:00:52]} 20. Nc3 {[%clk 0:00:54]}  Nb3 {[%clk 0:00:51]} 21. Rb1 {[%clk 0:00:54]}  Ne5 {[%clk 0:00:48]} 22. Bxb7 {[%clk 0:00:52]}  Rb8 {[%clk 0:00:48]} 23. Bxa6 {[%clk 0:00:50]}  h5 {[%clk 0:00:44]} 24. e4 {[%clk 0:00:47]}  Nxc1 {[%clk 0:00:39]} 25. Rxc1 {[%clk 0:00:46]}  Rxb2 {[%clk 0:00:40]} 26. Nd5 {[%clk 0:00:40]}  e6 {[%clk 0:00:39]} 27. Nb4 {[%clk 0:00:32]}  g5 {[%clk 0:00:35]} 28. Nd3 {[%clk 0:00:18]}  Ra2 {[%clk 0:00:34]} 29. Nxe5 {[%clk 0:00:17]}  Bxe5 {[%clk 0:00:34]} 30. Bc4 {[%clk 0:00:16]}  Rxa3 {[%clk 0:00:34]} 31. Rc2 {[%clk 0:00:15]}  Ra1+ {[%clk 0:00:30]} 32. Bf1 {[%clk 0:00:15]}  Kg7 {[%clk 0:00:29]} 33. g3 {[%clk 0:00:15]}  Bd4 {[%clk 0:00:25]} 34. Kg2 {[%clk 0:00:15]}  Kf6 {[%clk 0:00:25]} 35. Rd2 {[%clk 0:00:15]}  Ke5 {[%clk 0:00:24]} 36. Bd3 {[%clk 0:00:15]}  Bc3 {[%clk 0:00:22]} 37. Rc2 {[%clk 0:00:15]}  Ra3 {[%clk 0:00:22]} 38. Bb5 {[%clk 0:00:13]}  Kxe4 {[%clk 0:00:20]} 39. Be8 {[%clk 0:00:13]}  Kd3 {[%clk 0:00:18]} 40. Rc1 {[%clk 0:00:11]}  Ra7 {[%clk 0:00:18]} 41. Rd1+ {[%clk 0:00:11]}  Ke4 {[%clk 0:00:17]} 42. Rc1 {[%clk 0:00:10]}  Bd4 {[%clk 0:00:15]} 43. Rc2 {[%clk 0:00:10]}  Ke5 {[%clk 0:00:14]} 44. Bc6 {[%clk 0:00:10]}  Ra3 {[%clk 0:00:12]} 45. Re2+ {[%clk 0:00:10]}  Kd6 {[%clk 0:00:11]} 46. Bf3 {[%clk 0:00:10]}  h4 {[%clk 0:00:10]} 47. gxh4 {[%clk 0:00:11]}  gxh4 {[%clk 0:00:10]} 48. Bh5 {[%clk 0:00:11]}  Ke7 {[%clk 0:00:09]} 49. Rd2 {[%clk 0:00:12]}  Bb6 {[%clk 0:00:08]} 50. Rc2 {[%clk 0:00:12]}  Ra5 {[%clk 0:00:08]} 51. Be2 {[%clk 0:00:12]}  Rg5+ {[%clk 0:00:09]} 52. Kh1 {[%clk 0:00:12]}  Bxf2 {[%clk 0:00:08]} 53. Rc4 {[%clk 0:00:12]}  Bg3 {[%clk 0:00:08]} 54. Bg4 {[%clk 0:00:12]}  Re5 {[%clk 0:00:07]} 55. Rc7+ {[%clk 0:00:12]}  Kf8 {[%clk 0:00:07]} 56. Ra7 {[%clk 0:00:12]}  f5 {[%clk 0:00:07]} 57. Bh5 {[%clk 0:00:12]}  Re3 {[%clk 0:00:07]} 58. Rf7+ {[%clk 0:00:12]}  Kg8 {[%clk 0:00:07]} 59. Re7 {[%clk 0:00:13]}  e5 {[%clk 0:00:06]} 60. Kg2 {[%clk 0:00:13]}  e4 {[%clk 0:00:06]} 61. Bg6 {[%clk 0:00:12]}  Re2+ {[%clk 0:00:06]} 62. Kf1 {[%clk 0:00:12]}  Rf2+ {[%clk 0:00:06]} 63. Kg1 {[%clk 0:00:12]}  Kf8 {[%clk 0:00:06]} 64. Rf7+ {[%clk 0:00:12]}  Kg8 {[%clk 0:00:06]} 65. Rxf5 {[%clk 0:00:13]}  Rh2 {[%clk 0:00:05]} 66. Rg5 {[%clk 0:00:12]}  e3 {[%clk 0:00:05]} 67. Bf5+ {[%clk 0:00:12]}  Kf7 {[%clk 0:00:05]} 68. Bg4 {[%clk 0:00:13]}  Kf6 {[%clk 0:00:05]} 69. Rf5+ {[%clk 0:00:12]}  Kg6 {[%clk 0:00:05]} 70. Ra5 {[%clk 0:00:13]}  e2 {[%clk 0:00:04]} 71. Ra6+ {[%clk 0:00:13]}  Kg5 {[%clk 0:00:04]} 72. Bxe2 {[%clk 0:00:09]}  Rxe2 {[%clk 0:00:04]} 73. Kf1 {[%clk 0:00:09]}  Re1+ {[%clk 0:00:02]} 74. Kg2 {[%clk 0:00:09]}  Re2+ {[%clk 0:00:03]} 75. Kg1 {[%clk 0:00:08]}  Rf2 {[%clk 0:00:04]} 76. Ra5+ {[%clk 0:00:07]}  Kf6 {[%clk 0:00:04]} 77. Ra4 {[%clk 0:00:08]}  Kf5 {[%clk 0:00:04]} 78. Ra5+ {[%clk 0:00:08]}  Be5 {[%clk 0:00:03]} 79. Kxf2 {[%clk 0:00:06]}  Ke4 {[%clk 0:00:03]} 80. Rxe5+ {[%clk 0:00:06]}  Kxe5 {[%clk 0:00:03]} 81. Kf3 {[%clk 0:00:06]}  Kf5 {[%clk 0:00:03]} 82. Kg2 {[%clk 0:00:07]}  Kg6 {[%clk 0:00:04]} 83. Kh1 {[%clk 0:00:08]}  Kg5 {[%clk 0:00:04]} 84. Kh2 {[%clk 0:00:09]}  Kf4 {[%clk 0:00:05]} 85. Kh1 {[%clk 0:00:10]}  Kg3 {[%clk 0:00:05]} 86. Kg1 {[%clk 0:00:10]}  Kxh3 {[%clk 0:00:05]} 87. Kh1 {[%clk 0:00:11]}  Kg3 {[%clk 0:00:04]} 88. Kg1 {[%clk 0:00:12]}  h3 {[%clk 0:00:05]} 89. Kh1 {[%clk 0:00:13]}  h2 {[%clk 0:00:05]} 1/2-1/2

[Event "December 12 Late 2023"]
[Site "https://www.chess.com"]
[Date "2023.12.12"]
[Round "4"]
[White "Santos Flores, Alberto"]
[Black "Gruzman, Ilya"]
[Result "1-0"]
[Board "94"]
[TimeControl "180+1"]
[WhiteFideId "3601234"]
[BlackFideId "2812703"]
[WhiteElo "2549"]
[BlackElo "2362"]
[WhiteTeam "ECU"]
[BlackTeam "ISR"]
[WhiteClock "0:01:16"]
[BlackClock "0:00:00"]

1. e4 {[%clk 0:03:00]}  c5 {[%clk 0:03:00]} 2. Nf3 {[%clk 0:03:00]}  e6 {[%clk 0:03:00]} 3. g3 {[%clk 0:03:00]}  d5 {[%clk 0:03:00]} 4. exd5 {[%clk 0:03:00]}  exd5 {[%clk 0:03:01]} 5. d4 {[%clk 0:03:00]}  Nc6 {[%clk 0:03:01]} 6. Bg2 {[%clk 0:03:00]}  Bg4 {[%clk 0:03:01]} 7. c3 {[%clk 0:02:58]}  Nf6 {[%clk 0:02:58]} 8. O-O {[%clk 0:02:58]}  Be7 {[%clk 0:02:58]} 9. dxc5 {[%clk 0:02:58]}  Bxc5 {[%clk 0:02:58]} 10. Re1+ {[%clk 0:02:58]}  Be6 {[%clk 0:02:58]} 11. Nbd2 {[%clk 0:02:50]}  O-O {[%clk 0:02:58]} 12. Nb3 {[%clk 0:02:50]}  Bb6 {[%clk 0:02:57]} 13. Nbd4 {[%clk 0:02:50]}  Qd7 {[%clk 0:02:56]} 14. Be3 {[%clk 0:02:30]}  Ne4 {[%clk 0:02:49]} 15. Nd2 {[%clk 0:02:29]}  Nc5 {[%clk 0:02:34]} 16. Nxe6 {[%clk 0:02:25]}  fxe6 {[%clk 0:02:33]} 17. Nb3 {[%clk 0:02:24]}  Nxb3 {[%clk 0:02:26]} 18. axb3 {[%clk 0:02:24]}  Bxe3 {[%clk 0:02:17]} 19. Rxe3 {[%clk 0:02:25]}  Rae8 {[%clk 0:01:42]} 20. b4 {[%clk 0:02:23]}  a6 {[%clk 0:01:41]} 21. Qg4 {[%clk 0:02:16]}  Rf6 {[%clk 0:01:08]} 22. Rae1 {[%clk 0:02:13]}  d4 {[%clk 0:00:58]} 23. Rd3 {[%clk 0:01:52]}  Qf7 {[%clk 0:00:35]} 24. Bxc6 {[%clk 0:01:51]}  bxc6 {[%clk 0:00:34]} 25. Qxd4 {[%clk 0:01:50]}  Rf5 {[%clk 0:00:19]} 26. f4 {[%clk 0:01:47]}  h5 {[%clk 0:00:14]} 27. Re5 {[%clk 0:01:34]}  h4 {[%clk 0:00:13]} 28. Rde3 {[%clk 0:01:32]}  h3 {[%clk 0:00:06]} 29. Qe4 {[%clk 0:01:27]}  Rf6 {[%clk 0:00:00]} 30. Qxc6 {[%clk 0:01:16]} 1-0